fUSD/lending_fUSD_20240424
["ID","MTS","AMOUNT","RATE_DAILY","PERIOD"]
[323371360,1713937839104,-161.02195853,0.00012866,2]
[323371361,1713937839114,-155.90625719,0.00012866,2]
[323371362,1713937839123,-236.51827636,0.00012866,2]
[323371363,1713937839132,-3775.34001016,0.00012866,2]
[323371364,1713937839141,-193.56278168,0.00012866,2]
[323371365,1713937839150,-526.45930369,0.00012866,2]
[323371366,1713937839161,-214.29173227,0.00012866,2]
[323371367,1713937839170,-207.70305494,0.00012866,2]
[323371368,1713937839179,-201.18677387,0.00012866,2]
[323371369,1713937839188,-155.21700632,0.00012866,2]
[323371370,1713937839197,-921.46905176,0.00012866,2]
[323371371,1713937839207,-828.72947104,0.00012866,2]
[323371372,1713937840379,-668.87821,0.00012866,2]
[323371373,1713937840500,-1905.14387475,0.00012866,2]
[323371406,1713937843352,-373.12985573,0.00012866,2]
[323371407,1713937843361,-1398.23432772,0.00012866,2]
[323371408,1713937843372,-404.99214644,0.00012866,2]
[323371409,1713937843382,-1468.55345304,0.00012866,2]
[323371410,1713937843391,-500.0,0.00012867,2]
[323371411,1713937843400,-539.0,0.00012867,2]
[323371412,1713937843412,-290.18810106,0.00012867,2]
[323371413,1713937843421,-8407.02211601,0.00012868,2]
[323371414,1713937843432,-13039.99999992,0.00012868,2]
[323371415,1713937843640,-162.12456104,0.00012866,2]
[323371416,1713937843650,-1496.83174422,0.00012868,2]
[323371428,1713937846255,-315.41644368,0.00012866,2]
[323371430,1713937846264,-28342.93132762,0.00012868,2]
[323371438,1713937846365,-404.80228358,0.00012866,2]
[323371439,1713937846375,-12965.59771642,0.00012868,2]
[323371440,1713937846527,-663.799999,0.00012868,2]
[323371441,1713937846580,-11194.66481278,0.00012868,2]
[323371442,1713937846636,-5883.53840291,0.00012868,2]
[323371443,1713937846647,-1000.0,0.00012868,2]
[323371446,1713938571382,258.97,8.5e-05,2]
[323371449,1713938659337,1071.40050663,8.5e-05,2]
[323371450,1713938677278,469.62949337,8.5e-05,2]
[323371451,1713938677306,601.77101326,8.5e-05,2]
[323371452,1713938691350,1223.7671705,8.5e-05,2]
[323371659,1713939031405,-162.12456104,9.165e-05,2]
[323371663,1713939031417,-379.07907876,9.165e-05,2]
[323371667,1713939031427,-404.80228358,9.165e-05,2]
[323371669,1713939031436,-370.06678389,9.165e-05,2]
[323371671,1713939031445,-210.63626298,9.166e-05,2]
[323371673,1713939031454,-1065.86789494,9.172e-05,2]
[323371675,1713939031474,-412.36450577,9.172e-05,2]
[323371677,1713939031483,-150.0,9.918e-05,2]
[323371678,1713939031493,-150.0,9.918e-05,2]
[323371679,1713939031503,-150.0,9.918e-05,2]
[323371680,1713939031512,-205.24,9.919e-05,2]
[323371681,1713939031522,-170.52,9.926e-05,2]
[323371682,1713939031531,-245.05,9.926e-05,2]
[323371683,1713939031541,-637.11663864,9.926e-05,2]
[323371684,1713939031563,-788.60336136,9.926e-05,2]
[323371685,1713939031572,-200.0,9.961e-05,2]
[323371686,1713939031582,-250.0,9.975e-05,2]
[323371687,1713939031591,-391.16250235,0.000102,2]
[323371688,1713939031602,-1970.607362,0.000102,2]
[323371689,1713939031611,-9999.99,0.000102,2]
[323371690,1713939031621,-5761.10665332,0.00010408,2]
[323371691,1713939031632,-4799.4,0.00010408,2]
[323371692,1713939031963,-6206.2,0.00010408,2]
[323371693,1713939031992,-3921.68974662,0.00010408,2]
[323371694,1713939032004,-908.90360006,0.00010408,2]
[323371695,1713939032014,-234.67,0.00010431,2]
[323371696,1713939032023,-418.78,0.00010482,2]
[323371697,1713939032032,-418.78,0.00010511,2]
[323371698,1713939032042,-418.78,0.0001054,2]
[323371699,1713939032052,-418.78,0.00010568,2]
[323371700,1713939032061,-418.78,0.00010597,2]
[323371701,1713939032070,-418.78,0.00010626,2]
[323371702,1713939032080,-418.78,0.00010655,2]
[323371703,1713939032089,-418.78,0.00010683,2]
[323371704,1713939032098,-418.78,0.00010712,2]
[323371705,1713939032107,-418.78,0.00010741,2]
[323371706,1713939032117,-258.97,0.00010764,2]
[323371707,1713939032126,-418.78,0.0001077,2]
[323371708,1713939032135,-418.78,0.00010798,2]
[323371709,1713939032145,-418.78,0.00010827,2]
[323371710,1713939032154,-418.78,0.00010856,2]
[323371711,1713939032165,-418.78,0.00010885,2]
[323371712,1713939032175,-418.78,0.00010913,2]
[323371713,1713939032184,-418.78,0.00010942,2]
[323371714,1713939032193,-150.0,0.00010959,2]
[323371715,1713939032203,-418.78,0.00010971,2]
[323371716,1713939032212,-418.78,0.00011,2]
[323371717,1713939032222,-164.5,0.00011008,2]
[323371718,1713939032231,-418.78,0.00011028,2]
[323371719,1713939032241,-151.06,0.00011047,2]
[323371720,1713939032251,-243.98,0.00011052,2]
[323371721,1713939032260,-205.24,0.00011159,2]
[323371722,1713939032270,-1000.0,0.00011182,2]
[323371723,1713939032279,-7500.0,0.0001176,2]
[323371724,1713939032288,-195.0,0.00011838,2]
[323371725,1713939032299,-444.6202973,0.00011858,2]
[323371726,1713939032308,-155.25052764,0.00011858,2]
[323371727,1713939032318,-155.22834497,0.00011858,2]
[323371728,1713939032327,-363.90752768,0.00011858,2]
[323371729,1713939032341,-237.17351593,0.00011859,2]
[323371730,1713939032350,-707.92559969,0.00011859,2]
[323371731,1713939032359,-155.09515856,0.00011859,2]
[323371732,1713939032369,-4781.24,0.00011859,2]
[323371733,1713939032379,-4781.24,0.00011859,2]
[323371734,1713939032388,-4781.24,0.00011859,2]
[323371735,1713939032398,-4781.24,0.00011859,2]
[323371736,1713939032408,-4781.24,0.00011859,2]
[323371737,1713939032417,-4781.24,0.00011859,2]
[323371738,1713939032427,-4781.24,0.00011859,2]
[323371739,1713939032436,-4781.24,0.00011859,2]
[323371740,1713939032446,-4781.24,0.00011859,2]
[323371741,1713939032455,-4781.24,0.00011859,2]
[323371742,1713939032465,-4781.24,0.00011859,2]
[323371743,1713939032474,-4781.24,0.00011859,2]
[323371744,1713939032484,-4781.24,0.00011859,2]
[323371745,1713939032492,-4781.24,0.00011859,2]
[323371746,1713939032502,-4781.24,0.00011859,2]
[323371747,1713939032511,-4781.24,0.00011859,2]
[323371748,1713939032521,-4781.24,0.00011859,2]
[323371749,1713939032530,-4781.24,0.00011859,2]
[323371750,1713939032539,-4781.24,0.00011859,2]
[323371751,1713939032549,-4781.24,0.00011859,2]
[323371752,1713939032559,-4781.24,0.00011859,2]
[323371753,1713939032568,-4781.24,0.00011859,2]
[323371754,1713939032578,-4781.24,0.00011859,2]
[323371755,1713939032588,-4781.24,0.00011859,2]
[323371756,1713939032597,-307.03472156,0.0001186,2]
[323371757,1713939032607,-198647.37873185,0.0001186,2]
[323371758,1713939032623,-10569.72992466,0.0001186,2]
[323371759,1713939032634,-2001.76069057,0.0001186,2]
[323371760,1713939032653,-393.9,0.0001186,2]
[323371764,1713939037481,-6775.96856293,0.0001186,2]
[323371770,1713939037541,-7103.53077201,0.0001186,2]
[323371772,1713939037552,-3285.175,0.0001186,2]
[323371774,1713939037594,-1614.2,0.0001186,2]
[323371775,1713939037703,-14234.99887379,0.0001186,2]
[323371776,1713939037768,-61913.00000005,0.0001186,2]
[323371777,1713939037817,-12400.0,0.0001186,2]
[323371962,1713939039689,-8024.30659499,0.0001186,2]
[323371965,1713939039701,-815.82,0.0001186,2]
[323371969,1713939039735,-427.18877011,0.0001186,2]
[323371971,1713939039746,-3033.68078488,0.0001186,2]
[323371976,1713939039780,-6550.58244479,0.0001186,2]
[323371978,1713939039791,-4197.80695682,0.0001186,2]
[323371980,1713939039802,-6143.75419523,0.0001186,2]
[323371983,1713939039814,-31093.09914733,0.0001186,2]
[323371985,1713939039825,-455.34,0.0001186,2]
[323371991,1713939039873,-9142.38341367,0.0001186,2]
[323371997,1713939039919,-880.188012,0.0001186,2]
[323372285,1713939042707,-337815.67370173,0.0001186,2]
[323372287,1713939042717,-155.44,0.00011893,2]
[323372289,1713939042726,-155.44,0.00011898,2]
[323372291,1713939042736,-155.44,0.00011902,2]
[323372293,1713939042745,-155.44,0.00011906,2]
[323372352,1713939043208,-155.44,0.0001191,2]
[323372361,1713939043241,-155.44,0.00011915,2]
[323372367,1713939043276,-155.44,0.00011919,2]
[323372369,1713939043285,-155.44,0.00011923,2]
[323372371,1713939043294,-155.44,0.00011927,2]
[323372373,1713939043303,-155.44,0.00011932,2]
[323372375,1713939043312,-155.44,0.00011936,2]
[323372377,1713939043322,-155.44,0.0001194,2]
[323372378,1713939043332,-155.44,0.00011944,2]
[323372380,1713939043342,-155.44,0.00011949,2]
[323372382,1713939043351,-155.44,0.00011953,2]
[323372384,1713939043360,-153692.0,0.00012,2]
[323372386,1713939043369,-2750.0,0.00012,2]
[323372388,1713939043379,-164.03,0.00012033,2]
[323372391,1713939043388,-388.36316443,0.00012222,2]
[323372393,1713939043398,-205.24,0.00012399,2]
[323372395,1713939043407,-1000.0,0.0001258,2]
[323372396,1713939043418,-1425.72,0.00012666,2]
[323372398,1713939043427,-383.146,0.000127,2]
[323372400,1713939043436,-647.9538,0.000127,2]
[323372401,1713939043445,-4871.6169,0.000127,2]
[323372403,1713939043454,-367.13836326,0.00012765,2]
[323372405,1713939043463,-367.13836326,0.00012777,2]
[323372406,1713939043473,-367.13836326,0.0001279,2]
[323372408,1713939043482,-155.0,0.000128,2]
[323372410,1713939043491,-150.0,0.000128,2]
[323372412,1713939043500,-367.13836326,0.00012802,2]
[323372413,1713939043509,-369.9536,0.00012809,2]
[323372415,1713939043518,-367.13836326,0.00012814,2]
[323372417,1713939043527,-367.13836326,0.00012826,2]
[323372418,1713939043536,-367.13836326,0.00012839,2]
[323372420,1713939043545,-367.13836326,0.00012851,2]
[323372422,1713939043554,-826.59414197,0.00012863,2]
[323372423,1713939043562,-367.13836326,0.00012863,2]
[323372425,1713939043572,-644.19888833,0.00012866,2]
[323372427,1713939043581,-783.0121498,0.00012866,2]
[323372429,1713939043590,-377.19161634,0.00012866,2]
[323372431,1713939043600,-313.59829789,0.00012866,2]
[323372432,1713939043609,-301.02447591,0.00012866,2]
[323372434,1713939043619,-200.23233855,0.00012866,2]
[323372436,1713939043628,-161.42045135,0.00012866,2]
[323372437,1713939043636,-207.66380842,0.00012866,2]
[323372439,1713939043645,-155.0,0.00012866,2]
[323372441,1713939043654,-262.19707218,0.00012866,2]
[323372443,1713939043663,-155.87491651,0.00012866,2]
[323372445,1713939043673,-192.6832454,0.00012866,2]
[323372446,1713939043683,-236.51827636,0.00012866,2]
[323372448,1713939043692,-202.68507058,0.00012866,2]
[323372450,1713939043701,-344.00434686,0.00012866,2]
[323372451,1713939043710,-1052.66297188,0.00012866,2]
[323372453,1713939043719,-1870.04361601,0.00012866,2]
[323372455,1713939043729,-12058.37161419,0.00012867,2]
[323372457,1713939043738,-64308.64863667,0.00012868,2]
[323372462,1713939043796,-906.0,0.00012868,2]
[323372467,1713939043835,-3720.0,0.00012868,2]
[323372469,1713939043847,-471.441,0.00012868,2]
[323372604,1713939045477,-281.00881241,0.00011859,2]
[323372606,1713939045489,-97.80109714,0.00011859,2]
[323372608,1713939045498,-239.28859803,0.00012866,2]
[323372613,1713939045534,-130.77818586,0.00012866,2]
[323372615,1713939045543,-210.48526361,0.00012866,2]
[323372617,1713939045552,-1508.46514869,0.00012868,2]
[323372628,1713939045642,-2673.47592341,0.00012868,2]
[323372630,1713939045654,-2574.88,0.00012868,2]
[323372632,1713939045668,-18100.000001,0.00012868,2]
[323373643,1713939557458,-404.80228358,0.00010062,2]
[323373644,1713939557479,-157.27160735,0.00010062,2]
[323373645,1713939557502,-159.94622948,0.00010063,2]
[323373646,1713939557523,-1277.97987959,0.00010152,2]
[323373647,1713939558406,-330.69698042,0.00010152,2]
[323373648,1713939558427,-162.12456104,0.00010153,2]
[323373649,1713939558449,-287.74,0.00010163,2]
[323373650,1713939558471,-159.94622947,0.00010737,2]
[323373651,1713939558494,-159.94622947,0.00011411,2]
[323373652,1713939599340,899.5459996,0.000114,2]
[323373653,1713939599361,1261.4783273,0.000114,2]
[323373654,1713939731851,542.03417704,9.12e-05,2]
[323373655,1713939788224,150.0,0.00011301,2]
[323373656,1713939800210,46.48749566,9.066e-05,2]
[323373657,1713939800232,238.32250434,9.066e-05,2]
[323373658,1713939800427,284.81,0.0001133,2]
[323373659,1713939842371,1084.76,0.00011244,2]
[323373660,1713939852966,151.06,0.00010972,2]
[323373662,1713939861973,-162.12456104,0.00011481,2]
[323373663,1713939861997,-404.80228358,0.00011482,2]
[323373664,1713939862019,-3383.32455658,0.00011483,2]
[323373665,1713939862042,-49.7485988,0.00011485,2]
[323373666,1713939863747,-104.9814012,0.00011485,2]
[323373667,1713939863769,-154.73,0.00011495,2]
[323373668,1713939863789,-154.73,0.00011505,2]
[323373669,1713939863811,-154.73,0.00011514,2]
[323373670,1713939863831,-154.73,0.00011524,2]
[323373671,1713939863852,-154.73,0.00011533,2]
[323373672,1713939863874,-154.73,0.00011543,2]
[323373673,1713939863895,-154.24,0.00011559,2]
[323373674,1713939863915,-150.99,0.00011581,2]
[323373675,1713939863936,-154.24,0.00011614,2]
[323373676,1713939863959,-183.41,0.00011623,2]
[323373677,1713939863982,-499.99,0.00011623,2]
[323373678,1713939864002,-150.99,0.00011623,2]
[323373679,1713939864024,-154.24,0.00011669,2]
[323373680,1713939864047,-154.24,0.00011723,2]
[323373681,1713939864070,-150.0,0.00011759,2]
[323373682,1713939864091,-1214.2985988,0.0001176,2]
[323373683,1713939865695,-1569.8138012,0.0001176,2]
[323373684,1713939865718,-154.24,0.00011778,2]
[323373685,1713939865739,-154.24,0.00011833,2]
[323373686,1713939866047,-154.24,0.00011888,2]
[323373688,1713939876841,155.0,0.00011941,2]
[323373689,1713939917003,-154.24,0.00011942,2]
[323373690,1713939917026,-154.24,0.00011997,2]
[323373691,1713939917048,-3691.52,0.00012026,2]
[323373692,1713939917822,-4000.0,0.00012026,2]
[323373693,1713939918697,-3251.425,0.00012026,2]
[323373694,1713939918718,-748.575,0.00012028,2]
[323373695,1713939919960,-4000.0,0.00012028,2]
[323373696,1713939921372,-4000.0,0.00012028,2]
[323373697,1713939922641,-2473.373,0.00012028,2]
[323373698,1713939922666,-195.0,0.00012029,2]
[323373699,1713939922689,-1331.627,0.00012029,2]
[323373700,1713939923962,-4000.0,0.00012029,2]
[323373701,1713939925399,-395.373,0.00012029,2]
[323373702,1713939925422,-3604.627,0.00012029,2]
[323373703,1713939926786,-2286.373,0.00012029,2]
[323373704,1713939926806,-1713.627,0.00012029,2]
[323373705,1713939928144,-990.373,0.00012029,2]
[323373706,1713939937146,162.12456104,0.00012051,2]
[323373707,1713939963558,2847.50243896,0.00011941,2]
[323373708,1713939963579,4000.0,0.00011941,2]
[323373709,1713939963601,1812.4661988,0.00011941,2]
[323373710,1713940008397,151.0,0.00019812,120]
[323373711,1713940103783,241.04749566,0.00011393,2]
[323373712,1713940103805,2000.0,0.00011393,2]
[323373713,1713940103830,2000.0,0.00011393,2]
[323373714,1713940103853,2000.0,0.00011393,2]
[323373715,1713940103876,2000.0,0.00011393,2]
[323373716,1713940103898,2000.0,0.00011393,2]
[323373717,1713940103920,2000.0,0.00011393,2]
[323373718,1713940103941,2000.0,0.00011393,2]
[323373719,1713940103962,2000.0,0.00011393,2]
[323373720,1713940103986,408.08250434,0.00011393,2]
[323373726,1713940231607,-154.24,0.00011428,2]
[323373727,1713940231617,-345.76,0.00011428,2]
[323373728,1713940231665,-100.37883269,0.00011428,2]
[323373729,1713940231676,-272.43116731,0.00011453,2]
[323373730,1713940231689,-727.56883269,0.00011453,2]
[323373731,1713940231699,-150.0,0.00011564,2]
[323373732,1713940231709,-150.0,0.00011681,2]
[323373733,1713940231723,-154.24,0.00011726,2]
[323373734,1713940231733,-150.0,0.00011798,2]
[323373735,1713940231742,-150.0,0.00011915,2]
[323373736,1713940231751,-3296.85232583,0.00011941,2]
[323373737,1713940231762,-150.0,0.00012007,2]
[323373738,1713940231771,-11154.515,0.00012008,2]
[323373739,1713940231781,-154.24,0.00012023,2]
[323373740,1713940231793,-150.0,0.00012032,2]
[323373741,1713940231803,-10963.018,0.00012042,2]
[323373742,1713940231812,-159.94622947,0.00012085,2]
[323373743,1713940231822,-10869.502,0.00012089,2]
[323373744,1713940231831,-150.99,0.00012089,2]
[323373745,1713940231842,-11229.711,0.0001213,2]
[323373746,1713940231851,-150.0,0.00012148,2]
[323373747,1713940231860,-11027.68,0.00012189,2]
[323373748,1713940231870,-150.0,0.00012265,2]
[323373749,1713940231880,-10861.618,0.00012275,2]
[323373750,1713940231889,-150.0,0.00012382,2]
[323373751,1713940231899,-11001.359,0.00012399,2]
[323373752,1713940231908,-10989.771,0.00012441,2]
[323373753,1713940231917,-150.0,0.00012499,2]
[323373754,1713940231927,-25993.2911,0.000126,2]
[323373755,1713940231937,-231.65,0.000126,2]
[323373756,1713940231946,-7500.0,0.000126,2]
[323373757,1713940231955,-150.0,0.00012616,2]
[323373758,1713940231964,-150.25547053,0.0001264,2]
[323373759,1713940231973,-1003.05336648,0.00012667,2]
[323373760,1713940231982,-18611.77598243,0.00012668,2]
[323373761,1713940231991,-294.62342337,0.00012698,2]
[323373762,1713940232002,-284.05338401,0.00012698,2]
[323373763,1713940232011,-3413.36288726,0.00012698,2]
[323373764,1713940232021,-157.45686731,0.00012698,2]
[323373765,1713940232030,-3402.20150792,0.00012699,2]
[323373766,1713940232039,-150.25547051,0.00012699,2]
[323373767,1713940232049,-87299.66466072,0.00012699,2]
[323373768,1713940232058,-896667.04293,0.000127,2]
[323373770,1713940232068,-150.0,0.00012733,2]
[323373772,1713940232079,-539.0,0.00012735,2]
[323373774,1713940232090,-1134.38071219,0.00012757,2]
[323373776,1713940232100,-150.25547051,0.00012758,2]
[323373777,1713940232109,-159.94622947,0.00012759,2]
[323373779,1713940232119,-1000.0,0.00012764,2]
[323373780,1713940232128,-500.0,0.00012764,2]
[323373781,1713940232138,-1000.0,0.00012765,2]
[323373782,1713940232147,-1000.0,0.00012765,2]
[323373783,1713940232157,-500.0,0.00012765,2]
[323373784,1713940232166,-500.0,0.00012765,2]
[323373785,1713940232175,-10000.0,0.00012768,2]
[323373786,1713940232187,-609.54520243,0.00012768,2]
[323373787,1713940232198,-196.05073833,0.0001277,2]
[323373788,1713940232450,-167.84639331,0.0001277,2]
[323373789,1713940232464,-1134.38071209,0.0001277,2]
[323373790,1713940232474,-609.54520242,0.00012772,2]
[323373791,1713940232483,-609.54520242,0.00012776,2]
[323373792,1713940232492,-1134.38071209,0.00012783,2]
[323373793,1713940232501,-1134.38071209,0.00012796,2]
[323373794,1713940232511,-20000.0,0.000128,2]
[323373795,1713940232521,-155.0,0.000128,2]
[323373796,1713940232530,-2228.0,0.000128,2]
[323373797,1713940232539,-1134.38071209,0.00012809,2]
[323373798,1713940232549,-1134.38071209,0.00012822,2]
[323373799,1713940232558,-1134.38071209,0.00012835,2]
[323373800,1713940232569,-157.05624487,0.00012837,2]
[323373801,1713940232579,-1134.38071209,0.00012848,2]
[323373802,1713940232588,-150.0,0.00012849,2]
[323373803,1713940232598,-500.0,0.0001285,2]
[323373804,1713940232607,-305.53516982,0.00012856,2]
[323373805,1713940232616,-3361.09,0.00012856,2]
[323373806,1713940232625,-3361.09,0.00012856,2]
[323373807,1713940232634,-3361.09,0.00012856,2]
[323373808,1713940232644,-3361.09,0.00012856,2]
[323373809,1713940232653,-3361.09,0.00012856,2]
[323373810,1713940232663,-3361.09,0.00012856,2]
[323373811,1713940232672,-3361.09,0.00012856,2]
[323373812,1713940232682,-3361.09,0.00012856,2]
[323373813,1713940232691,-3361.09,0.00012856,2]
[323373814,1713940232701,-3361.09,0.00012856,2]
[323373815,1713940232711,-3361.09,0.00012856,2]
[323373816,1713940232724,-3361.09,0.00012856,2]
[323373817,1713940232733,-3361.09,0.00012856,2]
[323373818,1713940232742,-3361.09,0.00012856,2]
[323373819,1713940232751,-3361.09,0.00012856,2]
[323373820,1713940232761,-3361.09,0.00012856,2]
[323373821,1713940232770,-3361.09,0.00012856,2]
[323373822,1713940232779,-3361.09,0.00012856,2]
[323373823,1713940232788,-3361.09,0.00012856,2]
[323373824,1713940232798,-3361.09,0.00012856,2]
[323373825,1713940232807,-3361.09,0.00012856,2]
[323373826,1713940232816,-3361.09,0.00012856,2]
[323373827,1713940232825,-3361.09,0.00012856,2]
[323373828,1713940232834,-3361.1095112,0.00012856,2]
[323373829,1713940232843,-237.61570329,0.00012857,2]
[323373830,1713940232852,-55644.7475826,0.00012857,2]
[323373831,1713940232862,-3679.1744751,0.00012857,2]
[323373832,1713940232872,-421.7508049,0.00012857,2]
[323373833,1713940232882,-56251.9259627,0.00012857,2]
[323373834,1713940232891,-46517.8439633,0.00012857,2]
[323373835,1713940232900,-4832.8132249,0.00012857,2]
[323373836,1713940232910,-12387.5220709,0.00012857,2]
[323373837,1713940232919,-165.97981581,0.00012858,2]
[323373838,1713940232930,-500.0,0.00012858,2]
[323373839,1713940232939,-45860.4525806,0.00012859,2]
[323373840,1713940232949,-36076.1575786,0.00012859,2]
[323373841,1713940232959,-16316.267852,0.00012859,2]
[323373842,1713940232968,-3032.2467777,0.00012859,2]
[323373843,1713940232977,-2385.3190802,0.00012859,2]
[323373844,1713940232986,-421.7508049,0.00012859,2]
[323373845,1713940232995,-421.7508049,0.00012859,2]
[323373846,1713940233004,-45938.7681792,0.00012859,2]
[323373847,1713940233013,-35625.6103957,0.00012859,2]
[323373848,1713940233022,-39403.6882095,0.00012859,2]
[323373849,1713940233032,-32289.5324558,0.00012859,2]
[323373850,1713940233041,-4093.712203,0.00012859,2]
[323373851,1713940233051,-3354.6111811,0.00012859,2]
[323373852,1713940233060,-10493.0498876,0.00012859,2]
[323373853,1713940233069,-8598.5777043,0.00012859,2]
[323373854,1713940233078,-409.0,0.00012859,2]
[323373855,1713940233087,-1134.38071209,0.00012861,2]
[323373856,1713940233096,-1305.10440471,0.00012866,2]
[323373857,1713940233105,-434.09295924,0.00012866,2]
[323373858,1713940233115,-155.69993646,0.00012866,2]
[323373859,1713940233124,-310.34541804,0.00012866,2]
[323373860,1713940233133,-363.74561249,0.00012866,2]
[323373861,1713940233142,-271.77884309,0.00012866,2]
[323373862,1713940233151,-155.12224356,0.00012866,2]
[323373863,1713940233161,-488.36496742,0.00012866,2]
[323373864,1713940233169,-155.23723071,0.00012866,2]
[323373865,1713940233178,-711.67551512,0.00012866,2]
[323373866,1713940233189,-156.34146276,0.00012866,2]
[323373867,1713940233198,-155.8483883,0.00012866,2]
[323373868,1713940233207,-155.39166245,0.00012866,2]
[323373869,1713940233218,-155.4674636,0.00012866,2]
[323373870,1713940233227,-237.69363962,0.00012866,2]
[323373871,1713940233237,-264.05975864,0.00012866,2]
[323373872,1713940233246,-1417.77016156,0.00012866,2]
[323373873,1713940233255,-165.17853855,0.00012866,2]
[323373874,1713940233264,-272.54057204,0.00012866,2]
[323373875,1713940233274,-155.41902391,0.00012866,2]
[323373876,1713940233284,-157.18224701,0.00012866,2]
[323373877,1713940233293,-206.67486349,0.00012866,2]
[323373878,1713940233302,-155.54422486,0.00012866,2]
[323373879,1713940233312,-219.2627495,0.00012866,2]
[323373880,1713940233321,-155.52024681,0.00012866,2]
[323373881,1713940233330,-323.41321346,0.00012866,2]
[323373882,1713940233339,-4350.69706834,0.00012866,2]
[323373883,1713940233349,-479.43175891,0.00012866,2]
[323373884,1713940233358,-309.63072112,0.00012866,2]
[323373885,1713940233367,-262.19707218,0.00012866,2]
[323373886,1713940233377,-155.0,0.00012866,2]
[323373887,1713940233386,-343.01364445,0.00012866,2]
[323373888,1713940233395,-155.0,0.00012866,2]
[323373889,1713940233405,-155.55569467,0.00012866,2]
[323373890,1713940233414,-210.35218609,0.00012866,2]
[323373891,1713940233423,-155.41197395,0.00012866,2]
[323373892,1713940233434,-358.63615803,0.00012866,2]
[323373893,1713940233443,-196.27446182,0.00012866,2]
[323373894,1713940233452,-5000.0,0.00012866,2]
[323373895,1713940233461,-155.80042803,0.00012866,2]
[323373896,1713940233471,-158.50879167,0.00012866,2]
[323373897,1713940233481,-157.1312396,0.00012866,2]
[323373898,1713940233491,-202.32630902,0.00012866,2]
[323373899,1713940233500,-3089.99001346,0.00012866,2]
[323373900,1713940233509,-159.67874238,0.00012866,2]
[323373901,1713940233518,-202.26348816,0.00012866,2]
[323373902,1713940233528,-271.30286894,0.00012866,2]
[323373903,1713940233539,-207.70305494,0.00012866,2]
[323373904,1713940233550,-10500.48532873,0.00012867,2]
[323373905,1713940233559,-173.02804405,0.00012867,2]
[323373906,1713940233569,-2342.11891346,0.00012867,2]
[323373907,1713940233578,-26291.8625766,0.00012867,2]
[323373908,1713940233588,-16507.5675747,0.00012867,2]
[323373909,1713940233597,-6723.2725727,0.00012867,2]
[323373910,1713940233606,-11891.096528,0.00012867,2]
[323373911,1713940233615,-7465.9252041,0.00012867,2]
[323373912,1713940233624,-3040.7538801,0.00012867,2]
[323373913,1713940233633,-1738.3913828,0.00012867,2]
[323373914,1713940233642,-1091.4636853,0.00012867,2]
[323373915,1713940233652,-444.5359879,0.00012867,2]
[323373916,1713940233661,-421.7508049,0.00012867,2]
[323373917,1713940233671,-421.7508049,0.00012867,2]
[323373918,1713940233681,-421.7508049,0.00012867,2]
[323373919,1713940233691,-25312.4526123,0.00012867,2]
[323373920,1713940233700,-14999.2948288,0.00012867,2]
[323373921,1713940233709,-4686.1370453,0.00012867,2]
[323373922,1713940233723,-25175.376702,0.00012867,2]
[323373923,1713940233732,-18061.2209483,0.00012867,2]
[323373924,1713940233742,-10947.0651945,0.00012867,2]
[323373925,1713940233751,-2615.5101591,0.00012867,2]
[323373926,1713940233761,-1876.4091372,0.00012867,2]
[323373927,1713940233770,-1137.3081153,0.00012867,2]
[323373928,1713940233780,-6704.105521,0.00012867,2]
[323373929,1713940233791,-500.0,0.00012867,2]
[323373930,1713940233800,-473421.46699144,0.00012868,2]
[323373931,1713940233814,-46029.73605365,0.00012868,2]
[323373932,1713940234403,-431.9080744,0.00012867,2]
[323373933,1713940234533,-372.2980098,0.00012867,2]
[323374042,1713940238931,-454.107,0.00012029,2]
[323374044,1713940238940,-181.79868548,0.0001269,2]
[323374046,1713940238949,-186.86685889,0.00012867,2]
[323374050,1713940238979,-3610.27491139,0.00012867,2]